bitfinex/quotes_SOLUSD_20241101
["timestamp","ask_amount","ask_price","bid_price","bid_amount"]
[1730459192149,10.84826515,168.39,168.35,44.566884]
[1730459192354,10.84826515,168.39,168.35,20.79]
[1730459194662,10.84826515,168.38,168.33,55.41724915]
[1730459194855,10.84826515,168.35,168.33,20.7921]
[1730459195263,10.84826515,168.37,168.33,14.8517]
[1730459195468,10.84826515,168.38,168.33,25.69996515]
[1730459196260,16.78726515,168.38,168.33,31.64066515]
[1730459197559,16.78726515,168.38,168.32,10.84826515]
[1730459197867,10.84826515,168.37,168.32,10.84826515]
[1730459199182,16.78726515,168.38,168.33,10.84826515]
[1730459199377,16.78726515,168.38,168.34,5.9403]
[1730459199590,10.84826515,168.37,168.33,20.7923]
[1730459203867,10.84826515,168.34,168.31,5.9414]
[1730459205693,10.84826515,168.34,168.3,20.7957]
[1730459206663,10.84826515,168.33,168.3,20.7957]
[1730459207276,10.84826515,168.32,168.28,21.5885]
[1730459207491,10.84826515,168.33,168.28,32.43676515]
[1730459207790,10.84826515,168.33,168.28,47.29286515]
[1730459208576,5.9378,168.41,168.32,10.84826515]
[1730459208768,10.84826515,168.4,168.35,10.84826515]
[1730459208973,10.84826515,168.39,168.33,34.62514915]
[1730459209693,10.84826515,168.38,168.34,5.9403]
[1730459210284,10.84826515,168.37,168.34,5.9403]
[1730459210585,10.84826515,168.36,168.33,14.8515]
[1730459210894,10.84826515,168.34,168.3,20.7956]
[1730459211289,10.84826515,168.35,168.3,31.64386515]
[1730459211999,16.78826515,168.35,168.3,31.64386515]
[1730459214801,10.84826515,168.33,168.29,10.84826515]
[1730459214988,10.84826515,168.33,168.28,32.43696515]
[1730459216375,10.84826515,168.34,168.29,10.84826515]
[1730459217100,10.84826515,168.33,168.28,47.29306515]
[1730459217292,10.84826515,168.34,168.29,10.84826515]
[1730459218201,16.78886515,168.34,168.29,16.79026515]
[1730459219578,10.84826515,168.33,168.28,47.29306515]
[1730459219875,10.84826515,168.33,168.28,31.64676515]
[1730459220980,10.84826515,168.32,168.27,22.84596515]
[1730459222083,5.9413,168.32,168.28,10.84826515]
[1730459222282,16.78856515,168.34,168.29,10.84826515]
[1730459222484,10.84826515,168.33,168.29,10.84826515]
[1730459223588,16.78906515,168.33,168.29,10.84826515]
[1730459224489,16.78906515,168.33,168.29,16.79026515]
[1730459226277,10.84826515,168.33,168.29,16.79026515]
[1730459226678,10.84826515,168.34,168.29,16.79026515]
[1730459227007,10.84826515,168.38,168.33,10.84826515]
[1730459227176,10.84826515,168.39,168.34,10.84826515]
[1730459227880,10.84826515,168.38,168.33,10.84826515]
[1730459228186,16.78686515,168.39,168.35,10.84826515]
[1730459228587,10.84826515,168.4,168.35,10.84826515]
[1730459228783,10.84826515,168.42,168.37,10.84826515]
[1730459228990,16.78536515,168.43,168.38,10.84826515]
[1730459229184,5.9371,168.43,168.39,10.84826515]
[1730459229398,16.78536515,168.43,168.38,10.84826515]
[1730459229604,10.84826515,168.41,168.36,26.46656515]
[1730459229998,10.84826515,168.41,168.37,5.9393]
[1730459230305,10.84826515,168.41,168.37,16.78756515]
[1730459231206,10.84826515,168.38,168.33,25.69966515]
[1730459231505,10.84826515,168.37,168.33,14.8514]
[1730459232303,16.78766515,168.37,168.33,14.8514]
[1730459232485,10.84826515,168.36,168.33,14.8514]
[1730459233091,16.78766515,168.37,168.33,14.8514]
[1730459233283,16.78766515,168.37,168.33,25.69966515]
[1730459233484,5.9394,168.37,168.33,31.64036515]
[1730459233700,5.9394,168.37,168.34,10.84826515]
[1730459234402,16.78716515,168.39,168.34,10.84826515]
[1730459235799,10.84826515,168.38,168.34,10.84826515]
[1730459236692,16.78736515,168.38,168.33,31.64026515]
[1730459237408,16.78736515,168.38,168.34,10.84826515]
[1730459237704,5.9391,168.38,168.34,10.84826515]
[1730459240407,16.78736515,168.38,168.33,31.64026515]
[1730459240592,10.84826515,168.4,168.35,10.84826515]
[1730459240795,10.84826515,168.39,168.34,34.62514915]
[1730459241807,10.84826515,168.4,168.35,10.84826515]
[1730459242101,16.78586515,168.42,168.37,10.84826515]
[1730459242698,16.78586515,168.42,168.37,16.78746515]
[1730459243090,10.84826515,168.41,168.37,5.9392]
[1730459243297,16.78586515,168.42,168.37,16.78746515]
[1730459243591,10.84826515,168.4,168.37,5.9392]
[1730459243791,10.84826515,168.39,168.36,29.716184]
[1730459244192,10.84826515,168.4,168.36,40.56444915]
[1730459244391,10.84826515,168.4,168.36,10.84826515]
[1730459244592,10.84826515,168.4,168.36,14.8491]
[1730459245807,10.84826515,168.4,168.36,20.7887]
[1730459246010,16.78616515,168.41,168.36,20.7887]
[1730459246709,10.84826515,168.4,168.36,20.7887]
[1730459249393,5.9385,168.39,168.35,10.84826515]
[1730459249711,10.84826515,168.37,168.33,20.7918]
[1730459250395,10.84826515,168.38,168.33,20.7918]
[1730459251717,10.84826515,168.37,168.33,20.7918]
[1730459252596,10.84826515,168.35,168.3,10.84826515]
[1730459252912,10.84826515,168.31,168.27,22.38597949]
[1730459253508,10.84826515,168.31,168.27,5.9426]
[1730459253711,10.84826515,168.32,168.27,16.79086515]
[1730459253903,16.78936515,168.32,168.27,16.79086515]
[1730459255010,16.78936515,168.32,168.27,5.9426]
[1730459255320,10.84826515,168.31,168.27,5.9426]
[1730459255897,10.84826515,168.32,168.27,16.79086515]
[1730459256299,10.84826515,168.33,168.28,34.62514915]
[1730459256504,5.9396,168.36,168.28,34.62514915]
[1730459256505,10.84826515,168.34,168.29,10.84826515]
[1730459257192,10.84826515,168.33,168.28,34.62514915]
[1730459257496,10.84826515,168.33,168.29,5.9421]
[1730459258091,10.84826515,168.32,168.29,5.9421]
[1730459258294,10.84826515,168.31,168.27,20.7995]
[1730459259312,10.84826515,168.32,168.27,31.64776515]
[1730459259514,10.84826515,168.31,168.27,20.7995]
[1730459262609,16.78966515,168.31,168.27,20.7995]
[1730459262997,16.78966515,168.31,168.27,14.857]
[1730459263307,10.84826515,168.29,168.26,6.1276]
[1730459263510,10.84826515,168.3,168.26,6.1276]
[1730459264015,10.84826515,168.28,168.24,14.8592]
[1730459264231,10.84826515,168.29,168.24,31.65126515]
[1730459264514,16.79056515,168.29,168.24,31.65126515]
[1730459264715,5.9423,168.29,168.25,10.84826515]
[1730459264917,16.79056515,168.29,168.24,31.65126515]
[1730459265121,16.79056515,168.29,168.25,10.84826515]
[1730459267005,10.84826515,168.29,168.25,23.776884]
[1730459267213,10.84826515,168.29,168.24,31.65126515]
[1730459269222,10.84826515,168.29,168.25,10.84826515]
[1730459269527,16.79016515,168.3,168.25,10.84826515]
[1730459269724,10.84826515,168.29,168.25,16.79156515]
[1730459269914,10.84826515,168.3,168.25,16.79156515]
[1730459270827,10.84826515,168.29,168.24,25.70746515]
[1730459272923,10.84826515,168.3,168.26,10.84826515]
[1730459273112,10.84826515,168.31,168.27,10.84826515]
[1730459273315,10.84826515,168.33,168.28,10.84826515]
[1730459273619,10.84826515,168.34,168.3,10.84826515]
[1730459273798,10.84826515,168.34,168.29,10.84826515]
[1730459275120,10.84826515,168.34,168.3,5.9417]
[1730459275729,10.84826515,168.34,168.3,20.7961]
[1730459279030,10.84826515,168.34,168.3,14.8544]
[1730459279444,10.84826515,168.34,168.29,5.9421]
[1730459279612,10.84826515,168.32,168.28,27.201]
[1730459283635,10.84826515,168.31,168.28,5.9424]
[1730459284128,10.84826515,168.31,168.27,14.8565]
[1730459284129,10.84826515,168.29,168.27,20.7992]
[1730459284441,10.84826515,168.29,168.24,10.84826515]
[1730459284614,10.84826515,168.29,168.25,20.802]
[1730459285214,10.84826515,168.28,168.25,20.802]
[1730459285427,10.84826515,168.29,168.25,20.802]
[1730459285638,10.84826515,168.28,168.25,20.802]
[1730459286836,10.84826515,168.27,168.25,14.8588]
[1730459287135,16.79076515,168.28,168.25,14.8588]
[1730459287334,10.84826515,168.28,168.25,14.8588]
[1730459289435,10.84826515,168.28,168.23,32.48216515]
[1730459289636,10.84826515,168.28,168.23,53.28696515]
[1730459293839,10.84826515,168.26,168.23,14.8606]
[1730459294138,10.84826515,168.25,168.21,5.9448]
[1730459294324,10.84826515,168.25,168.21,16.79306515]
[1730459294933,16.79166515,168.26,168.21,16.79306515]
[1730459295341,16.79106515,168.27,168.22,10.84826515]
[1730459295721,16.79116515,168.27,168.22,10.84826515]
[1730459295927,10.84826515,168.27,168.22,10.84826515]
[1730459296326,16.79076515,168.28,168.23,10.84826515]
[1730459296729,10.84826515,168.27,168.23,10.84826515]
[1730459296926,10.84826515,168.26,168.22,31.65416515]
[1730459297430,10.84826515,168.25,168.22,20.8059]
[1730459297637,10.84826515,168.24,168.22,20.8059]
[1730459297834,10.84826515,168.25,168.22,20.8059]
[1730459298137,10.84826515,168.26,168.22,20.8059]
[1730459298935,16.79126515,168.27,168.22,31.65416515]
[1730459300321,10.84826515,168.26,168.22,31.65416515]
[1730459301748,16.79126515,168.27,168.22,31.65416515]
[1730459302343,10.84826515,168.28,168.23,10.84826515]
[1730459302549,10.84826515,168.29,168.25,20.8023]
[1730459302847,16.79006515,168.3,168.25,31.65056515]
[1730459303072,10.84826515,168.3,168.25,31.65056515]
[1730459303921,10.84826515,168.29,168.25,20.8023]
[1730459304542,10.84826515,168.27,168.25,20.8023]
[1730459305637,10.84826515,168.27,168.25,14.8588]
[1730459307239,43.3930606,168.32,168.19,57.60954548]
[1730459307240,10.84826515,168.26,168.21,10.84826515]
[1730459309455,16.79146515,168.26,168.22,20.8059]
[1730459310351,10.84826515,168.25,168.22,20.8059]
[1730459310566,10.84826515,168.25,168.22,14.8614]
[1730459310752,10.84826515,168.25,168.2,10.84826515]
[1730459310950,10.84826515,168.24,168.19,53.35586515]
[1730459311555,10.84826515,168.24,168.2,10.84826515]
[1730459311763,10.84826515,168.25,168.2,10.84826515]
[1730459311963,10.84826515,168.25,168.21,10.84826515]
[1730459312255,10.84826515,168.27,168.22,10.84826515]
[1730459313243,16.79126515,168.27,168.22,16.79276515]
[1730459314058,10.84826515,168.26,168.22,5.9445]
[1730459314246,10.84826515,168.25,168.22,5.9445]
[1730459314959,10.84826515,168.24,168.2,20.8082]
[1730459315350,10.84826515,168.23,168.2,20.8082]
[1730459317142,10.84826515,168.22,168.2,20.8082]
[1730459318071,10.84826515,168.23,168.2,20.8082]
[1730459319664,10.84826515,168.22,168.19,5.9456]
[1730459319850,10.84826515,168.21,168.17,25.71366515]
[1730459320052,10.84826515,168.21,168.18,5.9459]
[1730459320565,10.84826515,168.22,168.18,5.9459]
[1730459322960,10.84826515,168.21,168.17,20.8116]
[1730459324551,10.84826515,168.2,168.17,14.8654]
[1730459329454,10.84826515,168.19,168.17,14.8654]
[1730459329661,10.84826515,168.18,168.17,14.8654]
[1730459330166,10.84826515,168.19,168.17,14.8654]
[1730459333089,10.84826515,168.18,168.15,5.947]
[1730459333565,10.84826515,168.18,168.15,20.8146]
[1730459334158,10.84826515,168.17,168.15,20.8146]
[1730459335078,10.84826515,168.17,168.15,14.8676]
[1730459336265,10.84826515,168.19,168.15,14.8676]
[1730459337582,10.84826515,168.19,168.15,20.8146]
[1730459337874,10.84826515,168.18,168.15,14.8676]
[1730459338051,10.84826515,168.17,168.15,14.8676]
[1730459338250,10.84826515,168.17,168.15,20.8146]
[1730459339577,10.84826515,168.17,168.15,14.8676]
[1730459340767,10.84826515,168.16,168.13,5.9477]
[1730459340965,10.84826515,168.15,168.13,5.9477]
[1730459344480,10.84826515,168.15,168.12,21.8082109]
[1730459344775,10.84826515,168.14,168.12,15.4956109]
[1730459345756,10.84826515,168.13,168.12,0.6254109]
[1730459348957,10.84826515,168.15,168.12,6.5734109]
[1730459349157,10.84826515,168.19,168.15,23.776884]
[1730459349369,10.84826515,168.19,168.15,10.84826515]
[1730459349572,10.84826515,168.18,168.13,26.46066515]
[1730459350375,10.84826515,168.18,168.14,20.8159]
[1730459350765,10.84826515,168.19,168.14,31.66416515]
[1730459351360,10.84826515,168.22,168.17,10.84826515]
[1730459351582,10.84826515,168.23,168.18,10.84826515]
[1730459351783,10.84826515,168.24,168.19,10.84826515]
[1730459351979,10.84826515,168.23,168.18,10.84826515]
[1730459352187,10.84826515,168.24,168.19,10.84826515]
[1730459353102,10.84826515,168.23,168.18,10.84826515]
[1730459354084,10.84826515,168.24,168.19,10.84826515]
[1730459354676,10.84826515,168.23,168.18,10.84826515]
[1730459355900,10.84826515,168.23,168.19,5.9456]
[1730459356088,10.84826515,168.22,168.19,5.9456]
[1730459356391,10.84826515,168.2,168.18,20.8104]
[1730459356700,10.84826515,168.21,168.18,20.8104]
[1730459357307,10.84826515,168.21,168.18,14.8645]
[1730459358591,10.84826515,168.22,168.18,20.8105]
[1730459359402,10.84826515,168.22,168.18,14.8645]
[1730459359785,10.84826515,168.22,168.18,20.8105]
[1730459360304,10.84826515,168.21,168.18,20.8105]
[1730459361614,10.84826515,168.2,168.17,5.9463]
[1730459363715,10.84826515,168.21,168.17,5.9463]
[1730459365309,10.84826515,168.18,168.15,14.8672]
[1730459365511,10.84826515,168.18,168.13,32.72696515]
[1730459365701,10.84826515,168.16,168.12,26.34357605]
[1730459365904,10.84826515,168.17,168.12,26.34357605]
[1730459366413,10.84826515,168.17,168.13,16.79596515]
[1730459367806,10.84826515,168.17,168.13,5.9477]
[1730459369117,16.79476515,168.17,168.13,5.9477]
[1730459369307,10.84826515,168.18,168.14,10.84826515]
[1730459369512,10.84826515,168.18,168.13,31.66536515]
[1730459370731,10.84826515,168.17,168.13,20.8171]
[1730459371797,10.84826515,168.18,168.13,31.66536515]
[1730459373401,10.84826515,168.17,168.13,20.8171]
[1730459380208,10.84826515,168.16,168.13,20.8171]
[1730459381408,5.9462,168.18,168.13,20.8171]
[1730459381409,10.84826515,168.17,168.13,20.8171]
[1730459381628,10.84826515,168.2,168.15,10.84826515]
[1730459381830,10.84826515,168.2,168.14,23.776884]
[1730459381831,10.84826515,168.21,168.16,34.62514915]
[1730459382122,10.84826515,168.21,168.17,23.776884]
[1730459383111,10.84826515,168.21,168.17,29.722984]
[1730459383436,10.84826515,168.2,168.17,20.812]
[1730459383812,10.84826515,168.19,168.17,14.8659]
[1730459384430,10.84826515,168.19,168.15,22.2771]
[1730459384610,10.84826515,168.18,168.15,22.2771]
[1730459385230,10.84826515,168.18,168.14,12.3749]
[1730459386314,10.84826515,168.18,168.14,27.2434]
[1730459387236,10.84826515,168.18,168.14,38.09166515]
[1730459388531,10.84826515,168.19,168.14,38.09166515]
[1730459389621,10.84826515,168.18,168.14,38.09166515]
[1730459390817,10.84826515,168.18,168.14,27.2434]
[1730459391424,16.79426515,168.18,168.14,27.2434]
[1730459392438,10.84826515,168.16,168.13,5.9476]
[1730459392827,10.84826515,168.16,168.12,6.5734109]
[1730459394422,10.84826515,168.16,168.12,0.6254109]
[1730459394631,16.79506515,168.16,168.12,0.6254109]
[1730459397246,10.84826515,168.15,168.12,0.6254109]
[1730459398546,16.79506515,168.16,168.12,0.6254109]
[1730459399551,10.84826515,168.15,168.12,0.6254109]
[1730459399752,16.79536515,168.15,168.12,0.6254109]
[1730459401233,5.9471,168.15,168.12,0.6254109]
[1730459401753,10.84826515,168.17,168.12,17.42177605]
[1730459402370,10.84826515,168.2,168.15,10.84826515]
[1730459402651,10.84826515,168.19,168.15,10.84826515]
[1730459403741,10.84826515,168.19,168.15,16.79506515]
[1730459404129,10.84826515,168.19,168.15,31.66266515]
[1730459404523,10.84826515,168.19,168.15,20.8144]
[1730459405836,16.79426515,168.18,168.15,14.8676]
[1730459406231,10.84826515,168.16,168.12,6.5732109]
[1730459406433,10.84826515,168.16,168.12,0.6254109]
[1730459406947,10.84826515,168.14,168.12,0.6254109]
[1730459407246,16.79566515,168.14,168.12,0.6254109]
[1730459412445,10.84826515,168.13,168.12,0.6254109]
[1730459412753,16.79566515,168.14,168.12,0.6254109]
[1730459415154,5.9474,168.14,168.12,0.6254109]
[1730459415689,16.79566515,168.14,168.12,0.6254109]
[1730459416961,10.84826515,168.13,168.12,0.6254109]
[1730459418658,16.79596515,168.13,168.12,0.6254109]
[1730459432674,40.57284915,168.13,168.12,0.6254109]
[1730459434505,40.57284915,168.13,168.03,15.4395]
[1730459434774,10.84826515,168.06,168.03,15.4395]
[1730459435766,5.9506,168.05,168.03,15.4395]
[1730459436153,16.79816515,168.07,168.03,15.4395]
[1730459436355,10.84826515,168.08,168.03,26.28776515]
[1730459436663,10.84826515,168.12,168.07,10.84826515]
[1730459437175,10.84826515,168.11,168.06,10.84826515]
[1730459437880,16.79696515,168.11,168.06,16.79846515]
[1730459439267,5.9487,168.11,168.07,10.84826515]
[1730459440267,5.9487,168.11,168.06,31.67406515]
[1730459440470,10.84826515,168.09,168.04,16.79906515]
[1730459440776,10.84826515,168.08,168.04,16.79906515]
[1730459441450,10.84826515,168.08,168.04,5.9508]
[1730459441654,5.9499,168.07,168.03,47.11706515]
[1730459441873,5.9499,168.07,168.03,41.16586515]
[1730459442074,5.9499,168.07,168.03,47.11716515]
[1730459442770,5.9497,168.08,168.04,10.84826515]
[1730459443372,5.9497,168.08,168.05,10.84826515]
[1730459443672,10.84826515,168.11,168.06,10.84826515]
[1730459443977,20.8148,168.15,168.05,14.8765]
[1730459443978,10.84826515,168.12,168.07,10.84826515]
[1730459444380,10.84826515,168.11,168.06,10.84826515]
[1730459446078,5.9488,168.1,168.06,10.84826515]
[1730459446679,16.79706515,168.1,168.05,25.72476515]
[1730459447558,10.84826515,168.09,168.04,10.84826515]
[1730459449181,5.9495,168.08,168.04,16.79916515]
[1730459449585,5.9495,168.08,168.05,10.84826515]
[1730459449961,16.79666515,168.11,168.06,10.84826515]
[1730459450158,16.79666515,168.11,168.04,20.8283]
[1730459450159,5.9484,168.11,168.07,10.84826515]
[1730459450361,5.9474,168.14,168.1,10.84826515]
[1730459450662,16.0135,168.18,168.11,10.84826515]
[1730459450663,16.79516515,168.16,168.11,10.84826515]
[1730459450872,16.79466515,168.17,168.12,10.84826515]
[1730459451087,5.9464,168.17,168.13,10.84826515]
[1730459451288,16.79466515,168.17,168.12,10.84826515]
[1730459452183,10.84826515,168.18,168.13,10.84826515]
[1730459452393,10.84826515,168.18,168.14,10.84826515]
[1730459452394,5.946,168.18,168.14,10.84826515]
[1730459452682,16.79396515,168.19,168.14,10.84826515]
[1730459453071,10.84826515,168.21,168.16,10.84826515]
[1730459453276,10.84826515,168.22,168.17,10.84826515]
[1730459454382,5.9449,168.21,168.17,10.84826515]
[1730459454582,10.84826515,168.2,168.15,27.42126515]
[1730459454796,10.84826515,168.19,168.15,16.573]
[1730459455094,10.84826515,168.18,168.13,23.15926515]
[1730459455775,10.84826515,168.19,168.14,10.84826515]
[1730459458290,5.946,168.18,168.14,10.84826515]
[1730459459565,10.84826515,168.2,168.15,10.84826515]
[1730459459769,16.79326515,168.21,168.16,10.84826515]
[1730459461177,10.84826515,168.2,168.16,10.84826515]
[1730459461368,16.79326515,168.21,168.16,10.84826515]
[1730459461770,16.79326515,168.21,168.17,10.84826515]
[1730459461971,14.8602,168.24,168.14,20.8159]
[1730459461972,10.84826515,168.24,168.19,10.84826515]
[1730459462476,10.84826515,168.23,168.18,10.84826515]
[1730459462683,5.9445,168.22,168.18,10.84826515]
[1730459462886,14.857,168.27,168.2,10.84826515]
[1730459462887,10.84826515,168.25,168.2,10.84826515]
[1730459463576,10.84826515,168.23,168.18,26.67136515]
[1730459463775,10.84826515,168.22,168.18,15.8231]
[1730459463965,10.84826515,168.21,168.16,10.84826515]
[1730459464604,10.84826515,168.2,168.15,10.84826515]
[1730459464782,5.9456,168.19,168.15,10.84826515]
[1730459465900,10.84826515,168.21,168.16,10.84826515]
[1730459466279,10.84826515,168.22,168.17,10.84826515]
[1730459467487,5.9449,168.21,168.17,10.84826515]
[1730459468375,16.79316515,168.21,168.16,10.84826515]
[1730459468591,10.84826515,168.2,168.15,25.71586515]
[1730459468977,10.84826515,168.19,168.14,26.67136515]
[1730459469601,10.84826515,168.18,168.13,17.21156515]
[1730459469779,10.84826515,168.17,168.13,6.3633]
[1730459470278,10.84826515,168.14,168.1,15.4313]
[1730459470487,10.84826515,168.13,168.09,21.3225]
[1730459470993,10.84826515,168.13,168.09,6.45]
[1730459471574,16.79626515,168.13,168.09,6.45]
[1730459471795,5.948,168.13,168.09,17.29826515]
[1730459472292,5.948,168.13,168.09,23.24736515]
[1730459474876,5.948,168.13,168.09,17.29826515]
[1730459475084,16.79626515,168.13,168.09,6.45]
[1730459476389,10.84826515,168.14,168.09,17.29826515]
[1730459478288,5.9477,168.13,168.09,17.29826515]
[1730459478694,16.79596515,168.13,168.09,6.45]
[1730459479710,10.84826515,168.14,168.09,31.67006515]
[1730459480005,10.84826515,168.16,168.11,10.84826515]
[1730459480578,10.84826515,168.15,168.1,10.84826515]
[1730459481003,16.79566515,168.15,168.1,10.84826515]
[1730459481908,16.79566515,168.15,168.1,16.79696515]
[1730459482209,16.79506515,168.16,168.11,10.84826515]
[1730459482598,10.84826515,168.16,168.11,10.84826515]
[1730459482919,16.79496515,168.16,168.11,10.84826515]
[1730459483223,5.9467,168.16,168.12,10.84826515]
[1730459483403,10.84826515,168.17,168.12,10.84826515]
[1730459483707,16.79466515,168.17,168.12,10.84826515]
[1730459484713,16.79466515,168.17,168.12,16.79626515]
[1730459487617,10.84826515,168.15,168.11,20.9214]
[1730459487924,10.84826515,168.12,168.08,14.8732]
[1730459488120,23.776884,168.21,168.08,31.67096515]
[1730459488121,10.84826515,168.13,168.08,31.67096515]
[1730459488991,23.776884,168.21,168.08,31.67096515]
[1730459488992,10.84826515,168.14,168.08,31.67096515]
[1730459489311,10.84826515,168.14,168.09,10.84826515]
[1730459489515,10.84826515,168.13,168.08,10.84826515]
[1730459490223,10.84826515,168.12,168.07,23.41656515]
[1730459490821,16.79666515,168.12,168.07,23.41656515]
[1730459494423,16.79666515,168.12,168.07,38.29126515]
[1730459494593,5.9484,168.12,168.08,10.84826515]
[1730459495015,5.9484,168.12,168.09,10.84826515]
[1730459495523,16.79596515,168.13,168.08,16.79776515]
[1730459498824,10.84826515,168.11,168.07,38.29126515]
[1730459499127,10.84826515,168.11,168.07,21.4933]
[1730459499420,10.84826515,168.1,168.07,6.6186]
[1730459499624,10.84826515,168.1,168.05,10.84826515]
[1730459500925,16.79736515,168.1,168.05,16.79876515]
[1730459501124,5.9491,168.1,168.06,10.84826515]
[1730459501303,16.79736515,168.1,168.05,16.79876515]
[1730459503114,10.84826515,168.11,168.06,10.84826515]
[1730459503306,16.79646515,168.12,168.07,10.84826515]
[1730459504116,5.9482,168.12,168.08,10.84826515]
[1730459504315,16.79646515,168.12,168.07,16.79786515]
[1730459504921,10.84826515,168.11,168.07,5.9496]
[1730459505128,10.84826515,168.11,168.06,31.67336515]
[1730459505338,16.79646515,168.12,168.07,10.84826515]
[1730459507027,16.79646515,168.12,168.07,16.79806515]
[1730459509420,16.79646515,168.12,168.07,10.84826515]
[1730459509835,16.79646515,168.12,168.07,16.79806515]
[1730459513252,10.84826515,168.13,168.07,16.79806515]
[1730459514222,5.9481,168.12,168.07,16.79806515]
[1730459514417,16.79636515,168.12,168.07,16.79806515]
[1730459515039,10.84826515,168.11,168.07,16.79806515]
[1730459515237,16.79686515,168.11,168.07,16.79806515]
[1730459516131,10.84826515,168.12,168.07,16.79806515]
[1730459517331,5.9484,168.11,168.07,10.84826515]
[1730459517534,16.79666515,168.11,168.06,25.72326515]
[1730459518742,16.79666515,168.11,168.06,31.67346515]
[1730459519040,16.79666515,168.11,168.06,20.8252]
[1730459519341,5.9484,168.11,168.07,10.84826515]
[1730459520218,5.9474,168.14,168.09,10.84826515]
[1730459520550,15.603,168.17,168.09,10.84826515]
[1730459520551,16.79456515,168.17,168.12,10.84826515]
[1730459520851,5.9463,168.17,168.13,10.84826515]
[1730459521148,5.9463,168.17,168.14,10.84826515]
[1730459522735,16.79436515,168.18,168.14,10.84826515]
[1730459523143,5.9461,168.18,168.15,10.84826515]
[1730459523443,5.9461,168.18,168.14,16.79556515]
[1730459523825,5.9461,168.18,168.15,10.84826515]
[1730459527336,10.84826515,168.2,168.15,10.84826515]
[1730459528541,10.84826515,168.19,168.14,16.79556515]
[1730459528729,5.9453,168.2,168.13,10.84826515]
[1730459528730,10.84826515,168.18,168.13,10.84826515]
[1730459528930,10.84826515,168.17,168.12,31.66576515]
[1730459529452,10.84826515,168.16,168.11,10.84826515]
[1730459530150,10.84826515,168.17,168.12,10.84826515]
[1730459530343,10.84826515,168.17,168.13,10.84826515]
[1730459530648,5.9463,168.17,168.13,10.84826515]
[1730459530947,16.79456515,168.17,168.13,10.84826515]
[1730459531754,16.79456515,168.17,168.12,10.84826515]
[1730459531934,10.84826515,168.16,168.11,16.79666515]
[1730459532140,10.84826515,168.16,168.11,10.84826515]
[1730459532846,16.79526515,168.15,168.1,10.84826515]
[1730459533155,10.84826515,168.14,168.09,17.48036515]
[1730459533461,16.79526515,168.15,168.1,10.84826515]
[1730459533632,5.947,168.15,168.11,10.84826515]
[1730459534547,5.947,168.15,168.09,27.454]
[1730459534548,16.79526515,168.15,168.09,32.35326515]
[1730459535638,10.84826515,168.14,168.09,32.35326515]
[1730459536054,10.84826515,168.11,168.06,22.95007898]
[1730459536244,10.84826515,168.11,168.06,16.79826515]
[1730459536753,10.84826515,168.11,168.07,10.84826515]
[1730459537958,16.79706515,168.11,168.07,10.84826515]
[1730459538268,5.9488,168.11,168.07,10.84826515]
[1730459539766,16.79706515,168.11,168.06,10.84826515]
[1730459540064,10.84826515,168.1,168.05,31.67446515]
[1730459540239,10.84826515,168.1,168.05,25.72396515]
[1730459540440,16.79706515,168.11,168.06,10.84826515]
[1730459541049,5.9488,168.11,168.07,10.84826515]
[1730459541752,5.9488,168.11,168.08,10.84826515]
[1730459542852,16.79636515,168.12,168.08,10.84826515]
[1730459543157,5.9481,168.12,168.08,10.84826515]
[1730459544455,16.79636515,168.12,168.07,10.84826515]
[1730459546843,10.84826515,168.16,168.1,10.84826515]
[1730459547063,10.84826515,168.17,168.12,10.84826515]
[1730459547767,5.9467,168.16,168.12,10.84826515]
[1730459548375,5.9467,168.16,168.13,10.84826515]
[1730459548872,5.9463,168.17,168.13,10.84826515]
[1730459550353,5.9463,168.17,168.13,16.79596515]
[1730459550964,16.79426515,168.18,168.13,16.79596515]
[1730459554467,10.84826515,168.17,168.12,10.84826515]
[1730459554650,10.84826515,168.17,168.12,16.79606515]
[1730459554854,10.84826515,168.15,168.11,14.8707]
[1730459556554,16.79536515,168.15,168.11,14.8707]
[1730459557173,5.9471,168.15,168.11,25.71896515]
[1730459557361,5.9471,168.15,168.11,31.66736515]
[1730459558258,5.9471,168.15,168.12,10.84826515]
[1730459559563,16.79426515,168.18,168.13,10.84826515]
[1730459559766,5.946,168.18,168.13,10.84826515]
[1730459559966,5.946,168.18,168.15,10.84826515]
[1730459560174,5.946,168.18,168.14,10.84826515]
[1730459560781,16.79426515,168.18,168.13,10.84826515]
[1730459560977,10.84826515,168.16,168.11,31.66736515]
[1730459561167,10.84826515,168.16,168.11,25.71896515]
[1730459561364,10.84826515,168.15,168.1,33.54756515]
[1730459562976,5.9474,168.14,168.1,33.54756515]
[1730459564685,5.9474,168.14,168.09,10.84826515]
[1730459565057,10.84826515,168.14,168.09,10.84826515]
[1730459566882,5.9477,168.13,168.09,10.84826515]